[Event "World Junior Chess Championship U20 2022"]
[White "Davtyan, Artur"]
[Black "Barseghyan, Armen Ar."]
[WhiteFideId "13308327"]
[BlackFideId "13306707"]
[WhiteElo "2517"]
[BlackElo "2402"]
[Result "0-1"]
[Round "02"]
[TimeControl "5400+30"]
[Date "2022.10.13"]
[WhiteClock "0:30:16"]
[BlackClock "1:03:59"]

1. d4 {[%clk 1:28:47]}  Nf6 {[%clk 1:29:13]} 2. c4 {[%clk 1:29:04]}  e6 {[%clk 1:29:28]} 3. Nf3 {[%clk 1:29:22]}  d5 {[%clk 1:27:03]} 4. Nc3 {[%clk 1:29:38]}  c5 {[%clk 1:26:17]} 5. cxd5 {[%clk 1:28:34]}  Nxd5 {[%clk 1:26:34]} 6. e4 {[%clk 1:28:59]}  Nxc3 {[%clk 1:26:38]} 7. bxc3 {[%clk 1:29:24]}  cxd4 {[%clk 1:26:41]} 8. cxd4 {[%clk 1:29:50]}  Bb4+ {[%clk 1:26:53]} 9. Bd2 {[%clk 1:30:14]}  Bxd2+ {[%clk 1:27:07]} 10. Qxd2 {[%clk 1:30:39]}  O-O {[%clk 1:27:19]} 11. Bc4 {[%clk 1:27:48]}  Nd7 {[%clk 1:27:36]} 12. O-O {[%clk 1:28:10]}  b6 {[%clk 1:28:01]} 13. Rfe1 {[%clk 1:27:57]}  Bb7 {[%clk 1:28:24]} 14. Rad1 {[%clk 1:28:18]}  Rc8 {[%clk 1:28:39]} 15. Bb3 {[%clk 1:28:20]}  Re8 {[%clk 1:28:59]} 16. h3 {[%clk 1:27:55]}  h6 {[%clk 1:28:06]} 17. Re3 {[%clk 1:23:38]}  Nf6 {[%clk 1:17:17]} 18. Qe1 {[%clk 1:21:54]}  Qc7 {[%clk 1:16:34]} 19. d5 {[%clk 0:56:04]}  exd5 {[%clk 1:15:47]} 20. e5 {[%clk 0:54:40]}  Nd7 {[%clk 1:14:44]} 21. Bxd5 {[%clk 0:46:11]}  Bxd5 {[%clk 1:14:17]} 22. Rxd5 {[%clk 0:46:35]}  Nf8 {[%clk 1:11:55]} 23. Nd4 {[%clk 0:27:02]}  Qc4 {[%clk 1:01:17]} 24. Rd6 {[%clk 0:26:05]}  Qxa2 {[%clk 0:47:07]} 25. Rg3 {[%clk 0:20:19]}  Qa5 {[%clk 0:39:02]} 26. Qxa5 {[%clk 0:07:48]}  bxa5 {[%clk 0:39:26]} 27. Nc6 {[%clk 0:00:42]}  Ng6 {[%clk 0:39:11]} 28. Re3 {[%clk 0:00:36]}  a4 {[%clk 0:38:36]} 29. Kh2 {[%clk 0:00:40]}  Re6 {[%clk 0:35:16]} 30. Nxa7 {[%clk 0:00:46]}  Ra8 {[%clk 0:34:59]} 31. Nc6 {[%clk 0:00:33]}  a3 {[%clk 0:35:14]} 32. Rxe6 {[%clk 0:00:32]}  fxe6 {[%clk 0:35:33]} 33. Re1 {[%clk 0:00:59]}  a2 {[%clk 0:35:39]} 34. Ra1 {[%clk 0:01:25]}  Ra4 {[%clk 0:36:03]} 35. Nd8 {[%clk 0:00:32]}  Nf4 {[%clk 0:32:32]} 36. g3 {[%clk 0:00:40]}  Ne2 {[%clk 0:32:07]} 37. Nxe6 {[%clk 0:00:37]}  Nc3 {[%clk 0:32:34]} 38. Nc7 {[%clk 0:00:34]}  Ra7 {[%clk 0:32:34]} 39. Ne6 {[%clk 0:00:32]}  Rb7 {[%clk 0:31:55]} 40. Nd4 {[%clk 0:01:01]}  Rb1 {[%clk 0:32:12]} 41. Nc2 {[%clk 0:01:27]}  Rb2 {[%clk 0:32:40]} 42. Nd4 {[%clk 0:00:31]}  Rxf2+ {[%clk 0:33:02]} 43. Kg1 {[%clk 0:00:58]}  Rb2 {[%clk 0:33:27]} 44. Rf1 {[%clk 0:01:27]}  Ne2+ {[%clk 0:33:06]} 45. Nxe2 {[%clk 0:01:34]}  Rb1 {[%clk 0:33:34]} 46. Nc3 {[%clk 0:30:16]}  Rxf1+ {[%clk 1:03:59]} 0-1


[Site "http://www.chessbomb.com"]

[Event "World Junior Chess Championship U20 2022"]
[White "Kozak, Adam"]
[Black "Peyrer, Konstantin"]
[WhiteFideId "753246"]
[BlackFideId "1640879"]
[WhiteElo "2516"]
[BlackElo "2402"]
[Result "1-0"]
[Round "02"]
[TimeControl "5400+30"]
[Date "2022.10.13"]
[WhiteClock "0:02:32"]
[BlackClock "0:37:10"]

1. e4 {[%clk 1:29:01]}  c5 {[%clk 0:00:00]} 2. Nf3 {[%clk 1:29:18]}  d6 {[%clk 1:30:30]} 3. Bb5+ {[%clk 1:29:10]}  Nd7 {[%clk 1:30:03]} 4. a4 {[%clk 1:29:28]}  Nf6 {[%clk 1:29:47]} 5. Nc3 {[%clk 1:29:50]}  g6 {[%clk 1:29:49]} 6. O-O {[%clk 1:29:50]}  Bg7 {[%clk 1:30:04]} 7. a5 {[%clk 1:24:05]}  a6 {[%clk 1:29:33]} 8. Be2 {[%clk 1:23:22]}  O-O {[%clk 1:29:24]} 9. d3 {[%clk 1:23:00]}  Rb8 {[%clk 1:26:55]} 10. Ra2 {[%clk 1:20:20]}  Ng4 {[%clk 1:25:42]} 11. d4 {[%clk 1:06:18]}  cxd4 {[%clk 1:23:52]} 12. Nxd4 {[%clk 1:06:39]}  Nge5 {[%clk 1:22:05]} 13. Nb3 {[%clk 1:05:33]}  Nf6 {[%clk 1:19:03]} 14. f4 {[%clk 1:00:14]}  Nc6 {[%clk 1:19:14]} 15. Bf3 {[%clk 1:00:19]}  Bd7 {[%clk 1:10:00]} 16. Be3 {[%clk 0:54:53]}  Qc8 {[%clk 1:06:57]} 17. h3 {[%clk 0:51:57]}  Be6 {[%clk 0:58:57]} 18. Ra4 {[%clk 0:40:27]}  Bxb3 {[%clk 0:56:29]} 19. cxb3 {[%clk 0:40:50]}  e5 {[%clk 0:55:38]} 20. f5 {[%clk 0:33:31]}  Qd8 {[%clk 0:52:05]} 21. g4 {[%clk 0:31:07]}  h6 {[%clk 0:50:30]} 22. g5 {[%clk 0:22:46]}  hxg5 {[%clk 0:50:26]} 23. Bxg5 {[%clk 0:23:09]}  Qc7 {[%clk 0:50:29]} 24. Kh1 {[%clk 0:21:46]}  Nh7 {[%clk 0:46:51]} 25. Nd5 {[%clk 0:18:44]}  Qd7 {[%clk 0:47:01]} 26. Be3 {[%clk 0:17:33]}  Qd8 {[%clk 0:44:54]} 27. Bg4 {[%clk 0:14:13]}  Qh4 {[%clk 0:42:57]} 28. Bf2 {[%clk 0:14:18]}  Qh6 {[%clk 0:42:51]} 29. Be3 {[%clk 0:12:40]}  Qh4 {[%clk 0:42:42]} 30. Qd2 {[%clk 0:09:12]}  Nf6 {[%clk 0:42:21]} 31. Bg5 {[%clk 0:06:09]}  Qh8 {[%clk 0:42:16]} 32. Kg2 {[%clk 0:05:26]}  Nd4 {[%clk 0:38:24]} 33. Ne7+ {[%clk 0:04:16]}  Kh7 {[%clk 0:38:39]} 34. Qf2 {[%clk 0:03:00]}  Bh6 {[%clk 0:37:10]} 35. Bxf6 {[%clk 0:02:32]} 1-0


[Site "http://www.chessbomb.com"]

[Event "World Junior Chess Championship U20 2022"]
[White "Kacharava, Nikolozi"]
[Black "Lumachi, Gabriele"]
[WhiteFideId "13611860"]
[BlackFideId "2817247"]
[WhiteElo "2512"]
[BlackElo "2387"]
[Result "1-0"]
[Round "02"]
[TimeControl "5400+30"]
[Date "2022.10.13"]
[WhiteClock "0:03:05"]
[BlackClock "0:02:07"]

1. e4 {[%clk 1:30:36]}  e5 {[%clk 1:30:55]} 2. Nf3 {[%clk 1:30:19]}  Nf6 {[%clk 1:31:18]} 3. d4 {[%clk 1:27:16]}  Nxe4 {[%clk 1:31:34]} 4. Bd3 {[%clk 1:27:05]}  Nc6 {[%clk 1:31:40]} 5. dxe5 {[%clk 1:12:49]}  Nc5 {[%clk 1:31:18]} 6. Bc4 {[%clk 1:11:06]}  d6 {[%clk 1:31:19]} 7. exd6 {[%clk 1:05:42]}  Qxd6 {[%clk 1:25:55]} 8. Qe2+ {[%clk 1:04:02]}  Be6 {[%clk 1:25:42]} 9. Nc3 {[%clk 0:53:57]}  O-O-O {[%clk 1:24:01]} 10. Nb5 {[%clk 0:51:29]}  Qd7 {[%clk 1:23:06]} 11. Be3 {[%clk 0:50:42]}  a6 {[%clk 1:11:05]} 12. Nc3 {[%clk 0:46:04]}  Bxc4 {[%clk 1:10:50]} 13. Qxc4 {[%clk 0:46:28]}  Qe6 {[%clk 1:09:12]} 14. Qe2 {[%clk 0:43:17]}  h6 {[%clk 1:09:09]} 15. O-O {[%clk 0:40:55]}  Ne4 {[%clk 1:00:03]} 16. Nxe4 {[%clk 0:38:57]}  Qxe4 {[%clk 1:00:26]} 17. c3 {[%clk 0:38:41]}  Bc5 {[%clk 0:56:22]} 18. Nd2 {[%clk 0:36:03]}  Qd3 {[%clk 0:53:42]} 19. Qxd3 {[%clk 0:33:12]}  Rxd3 {[%clk 0:54:05]} 20. Bxc5 {[%clk 0:32:17]}  Rxd2 {[%clk 0:54:26]} 21. Rab1 {[%clk 0:31:54]}  Rhd8 {[%clk 0:50:13]} 22. Rfc1 {[%clk 0:30:31]}  g5 {[%clk 0:45:13]} 23. Be3 {[%clk 0:29:02]}  R2d3 {[%clk 0:45:25]} 24. Kf1 {[%clk 0:27:06]}  f5 {[%clk 0:44:51]} 25. Ke2 {[%clk 0:20:31]}  R3d7 {[%clk 0:40:01]} 26. Rd1 {[%clk 0:13:30]}  f4 {[%clk 0:38:44]} 27. Rxd7 {[%clk 0:12:36]}  Kxd7 {[%clk 0:32:54]} 28. Rd1+ {[%clk 0:12:16]}  Ke6 {[%clk 0:33:19]} 29. Rxd8 {[%clk 0:11:32]}  Nxd8 {[%clk 0:33:44]} 30. Bd4 {[%clk 0:11:25]}  Kf5 {[%clk 0:32:43]} 31. f3 {[%clk 0:10:37]}  b5 {[%clk 0:26:51]} 32. Kd3 {[%clk 0:07:36]}  Ne6 {[%clk 0:26:30]} 33. Bf2 {[%clk 0:04:10]}  Ke5 {[%clk 0:25:01]} 34. c4 {[%clk 0:02:30]}  b4 {[%clk 0:25:03]} 35. a3 {[%clk 0:02:18]}  c5 {[%clk 0:16:49]} 36. axb4 {[%clk 0:02:18]}  cxb4 {[%clk 0:17:02]} 37. Kc2 {[%clk 0:01:05]}  Nd4+ {[%clk 0:11:33]} 38. Kd3 {[%clk 0:01:18]}  Ne6 {[%clk 0:11:56]} 39. Bb6 {[%clk 0:01:18]}  Kd6 {[%clk 0:10:52]} 40. Kc2 {[%clk 0:00:34]}  h5 {[%clk 0:01:25]} 41. Kb3 {[%clk 0:25:36]}  Kc6 {[%clk 0:28:39]} 42. Bg1 {[%clk 0:23:13]}  g4 {[%clk 0:19:54]} 43. fxg4 {[%clk 0:20:27]}  hxg4 {[%clk 0:20:19]} 44. Kxb4 {[%clk 0:17:38]}  Ng5 {[%clk 0:20:40]} 45. Ba7 {[%clk 0:10:37]}  Kb7 {[%clk 0:18:14]} 46. Bf2 {[%clk 0:05:58]}  Ne4 {[%clk 0:18:33]} 47. Bd4 {[%clk 0:05:12]}  Kc6 {[%clk 0:16:11]} 48. Ka5 {[%clk 0:03:18]}  Nc5 {[%clk 0:13:06]} 49. Bg1 {[%clk 0:02:48]}  Nd3 {[%clk 0:10:52]} 50. b4 {[%clk 0:02:39]}  Kb7 {[%clk 0:11:11]} 51. h4 {[%clk 0:01:26]}  Ne5 {[%clk 0:04:03]} 52. c5 {[%clk 0:01:07]}  Nc4+ {[%clk 0:04:20]} 53. Ka4 {[%clk 0:01:36]}  Ne3 {[%clk 0:04:42]} 54. h5 {[%clk 0:00:51]}  Nxg2 {[%clk 0:04:56]} 55. h6 {[%clk 0:01:16]}  Nh4 {[%clk 0:05:20]} 56. h7 {[%clk 0:01:27]}  Ng6 {[%clk 0:05:45]} 57. Bd4 {[%clk 0:01:28]}  g3 {[%clk 0:03:34]} 58. Be5 {[%clk 0:01:49]}  g2 {[%clk 0:00:39]} 59. Bd4 {[%clk 0:02:16]}  Nh8 {[%clk 0:00:51]} 60. Ka5 {[%clk 0:02:16]}  Nf7 {[%clk 0:01:13]} 61. Bg1 {[%clk 0:02:18]}  f3 {[%clk 0:01:11]} 62. Bf2 {[%clk 0:02:09]}  Nh8 {[%clk 0:01:24]} 63. Be3 {[%clk 0:02:18]}  Ng6 {[%clk 0:01:33]} 64. Bg1 {[%clk 0:02:38]}  Nh8 {[%clk 0:01:44]} 65. c6+ {[%clk 0:02:39]}  Kxc6 {[%clk 0:02:07]} 66. Kxa6 {[%clk 0:03:05]}  Kd5 {[%clk 0:02:07]} 1-0


[Site "http://www.chessbomb.com"]

[Event "World Junior Chess Championship U20 2022"]
[White "Horvath, Dominik"]
[Black "Isik, Alparslan"]
[WhiteFideId "1642561"]
[BlackFideId "34506896"]
[WhiteElo "2505"]
[BlackElo "2377"]
[Result "1/2-1/2"]
[Round "02"]
[TimeControl "5400+30"]
[Date "2022.10.13"]
[WhiteClock "0:14:04"]
[BlackClock "0:05:26"]

1. e4 {[%clk 1:30:12]}  e5 {[%clk 1:30:57]} 2. Nc3 {[%clk 1:30:00]}  Nf6 {[%clk 1:31:08]} 3. Nf3 {[%clk 1:25:17]}  Nc6 {[%clk 1:31:30]} 4. Bb5 {[%clk 1:25:42]}  Nd4 {[%clk 1:31:42]} 5. Bc4 {[%clk 1:26:06]}  Nxf3+ {[%clk 1:30:54]} 6. Qxf3 {[%clk 1:24:45]}  d6 {[%clk 1:29:38]} 7. d3 {[%clk 1:17:58]}  Be7 {[%clk 1:29:27]} 8. O-O {[%clk 1:17:48]}  O-O {[%clk 1:27:38]} 9. Bb3 {[%clk 1:12:07]}  c6 {[%clk 1:23:36]} 10. Ne2 {[%clk 1:12:11]}  Bg4 {[%clk 1:10:51]} 11. Qe3 {[%clk 1:12:12]}  Qb6 {[%clk 1:09:58]} 12. f3 {[%clk 1:06:27]}  Be6 {[%clk 1:07:19]} 13. Bxe6 {[%clk 0:51:32]}  Qxe3+ {[%clk 1:04:29]} 14. Bxe3 {[%clk 0:51:50]}  fxe6 {[%clk 1:04:55]} 15. a4 {[%clk 0:49:52]}  d5 {[%clk 1:02:04]} 16. a5 {[%clk 0:48:27]}  Nd7 {[%clk 0:50:56]} 17. c3 {[%clk 0:46:30]}  b5 {[%clk 0:46:59]} 18. a6 {[%clk 0:40:31]}  c5 {[%clk 0:44:21]} 19. d4 {[%clk 0:39:45]}  exd4 {[%clk 0:31:31]} 20. cxd4 {[%clk 0:40:09]}  cxd4 {[%clk 0:29:30]} 21. Nxd4 {[%clk 0:38:40]}  Bc5 {[%clk 0:27:51]} 22. exd5 {[%clk 0:37:50]}  exd5 {[%clk 0:28:16]} 23. Rfe1 {[%clk 0:37:41]}  Rae8 {[%clk 0:24:42]} 24. Bf2 {[%clk 0:36:30]}  Rxe1+ {[%clk 0:24:36]} 25. Rxe1 {[%clk 0:36:55]}  Rf6 {[%clk 0:24:08]} 26. Ra1 {[%clk 0:27:48]}  Nb8 {[%clk 0:23:16]} 27. Nxb5 {[%clk 0:26:51]}  Bxf2+ {[%clk 0:23:09]} 28. Kxf2 {[%clk 0:27:18]}  Rb6 {[%clk 0:17:30]} 29. Nxa7 {[%clk 0:25:47]}  Rxb2+ {[%clk 0:17:27]} 30. Ke3 {[%clk 0:26:14]}  Rb6 {[%clk 0:17:50]} 31. Kd4 {[%clk 0:23:56]}  Nxa6 {[%clk 0:14:31]} 32. Kxd5 {[%clk 0:21:57]}  Nc7+ {[%clk 0:14:25]} 33. Ke5 {[%clk 0:22:16]}  Rb2 {[%clk 0:12:25]} 34. Rg1 {[%clk 0:18:45]}  Re2+ {[%clk 0:12:26]} 35. Kd6 {[%clk 0:18:00]}  Ne8+ {[%clk 0:12:38]} 36. Kc5 {[%clk 0:18:14]}  Rc2+ {[%clk 0:10:35]} 37. Kd4 {[%clk 0:17:51]}  Nd6 {[%clk 0:10:58]} 38. Ke5 {[%clk 0:17:17]}  Nb5 {[%clk 0:08:57]} 39. Nxb5 {[%clk 0:16:36]}  Rc5+ {[%clk 0:09:25]} 40. Kf4 {[%clk 0:16:29]}  Rxb5 {[%clk 0:09:03]} 41. g4 {[%clk 0:16:57]}  h5 {[%clk 0:05:38]} 42. g5 {[%clk 0:17:02]}  Rb4+ {[%clk 0:05:49]} 43. Kf5 {[%clk 0:17:12]}  Kh7 {[%clk 0:05:37]} 44. Re1 {[%clk 0:14:50]}  g6+ {[%clk 0:04:17]} 45. Ke6 {[%clk 0:14:34]}  Rf4 {[%clk 0:04:03]} 46. Re3 {[%clk 0:14:26]}  Rf5 {[%clk 0:04:32]} 47. h4 {[%clk 0:14:33]}  Kg8 {[%clk 0:04:31]} 48. Ke7 {[%clk 0:14:12]}  Kg7 {[%clk 0:04:54]} 49. Ke6 {[%clk 0:12:29]}  Kg8 {[%clk 0:05:16]} 50. Rd3 {[%clk 0:12:56]}  Kg7 {[%clk 0:05:16]} 51. Kd7 {[%clk 0:12:13]}  Kg8 {[%clk 0:04:07]} 52. Re3 {[%clk 0:12:33]}  Kg7 {[%clk 0:04:09]} 53. Ke7 {[%clk 0:13:00]}  Rf7+ {[%clk 0:04:08]} 54. Ke8 {[%clk 0:12:55]}  Rf8+ {[%clk 0:04:36]} 55. Kd7 {[%clk 0:13:19]}  Rf5 {[%clk 0:05:01]} 56. Re7+ {[%clk 0:13:42]}  Kg8 {[%clk 0:05:22]} 57. Re6 {[%clk 0:14:05]}  Kg7 {[%clk 0:05:26]} 58. Re7+ {[%clk 0:14:04]} 1/2-1/2


[Site "http://www.chessbomb.com"]

[Event "World Junior Chess Championship U20 2022"]
[White "Bournel, Antoine"]
[Black "Gadimbayli, Abdulla"]
[WhiteFideId "26093553"]
[BlackFideId "13404938"]
[WhiteElo "2402"]
[BlackElo "2499"]
[Result "0-1"]
[Round "02"]
[TimeControl "5400+30"]
[Date "2022.10.13"]
[WhiteClock "0:00:50"]
[BlackClock "0:01:12"]

1. d4 {[%clk 1:25:00]}  e6 {[%clk 1:28:47]} 2. c4 {[%clk 1:23:05]}  Nf6 {[%clk 1:29:08]} 3. Nf3 {[%clk 1:23:07]}  b6 {[%clk 1:29:20]} 4. a3 {[%clk 1:22:33]}  Bb7 {[%clk 1:25:58]} 5. Bf4 {[%clk 1:22:13]}  g6 {[%clk 1:12:45]} 6. Nc3 {[%clk 1:21:00]}  Bg7 {[%clk 1:01:18]} 7. e3 {[%clk 1:20:33]}  O-O {[%clk 1:00:25]} 8. Be2 {[%clk 1:07:16]}  d6 {[%clk 0:51:39]} 9. Qc2 {[%clk 1:05:00]}  Qe7 {[%clk 0:44:29]} 10. e4 {[%clk 0:53:56]}  e5 {[%clk 0:32:17]} 11. dxe5 {[%clk 0:51:47]}  dxe5 {[%clk 0:32:42]} 12. Bg5 {[%clk 0:48:37]}  h6 {[%clk 0:25:12]} 13. Bh4 {[%clk 0:39:00]}  c6 {[%clk 0:20:47]} 14. O-O {[%clk 0:38:21]}  Na6 {[%clk 0:17:02]} 15. b4 {[%clk 0:35:48]}  Nc7 {[%clk 0:15:27]} 16. b5 {[%clk 0:33:22]}  Qe6 {[%clk 0:10:11]} 17. Rac1 {[%clk 0:26:11]}  Rac8 {[%clk 0:08:04]} 18. Qb1 {[%clk 0:19:55]}  cxb5 {[%clk 0:07:36]} 19. cxb5 {[%clk 0:19:14]}  Nce8 {[%clk 0:06:14]} 20. Bd1 {[%clk 0:15:33]}  Nxe4 {[%clk 0:04:14]} 21. Bb3 {[%clk 0:15:30]}  Qf5 {[%clk 0:04:12]} 22. Nd5 {[%clk 0:12:48]}  Bxd5 {[%clk 0:04:07]} 23. Rxc8 {[%clk 0:09:11]}  Qxc8 {[%clk 0:04:31]} 24. Bxd5 {[%clk 0:09:34]}  Nc3 {[%clk 0:04:57]} 25. Qc2 {[%clk 0:08:48]}  Qc5 {[%clk 0:05:10]} 26. Bc6 {[%clk 0:07:21]}  Nc7 {[%clk 0:04:48]} 27. a4 {[%clk 0:06:20]}  f5 {[%clk 0:03:20]} 28. Be7 {[%clk 0:02:37]}  Qxe7 {[%clk 0:03:24]} 29. Qxc3 {[%clk 0:03:06]}  Rd8 {[%clk 0:02:22]} 30. Nd2 {[%clk 0:02:14]}  Kh7 {[%clk 0:02:36]} 31. Nc4 {[%clk 0:01:50]}  Qc5 {[%clk 0:02:02]} 32. Qb3 {[%clk 0:00:52]}  Ne6 {[%clk 0:01:02]} 33. Ne3 {[%clk 0:01:21]}  Qe7 {[%clk 0:00:42]} 34. Rc1 {[%clk 0:00:55]}  Nc5 {[%clk 0:00:37]} 35. Qc2 {[%clk 0:00:50]}  e4 {[%clk 0:00:39]} 36. Rd1 {[%clk 0:00:45]}  Rd3 {[%clk 0:00:43]} 37. Bd5 {[%clk 0:00:45]}  Qe5 {[%clk 0:00:32]} 38. Bc4 {[%clk 0:00:36]}  Rxd1+ {[%clk 0:00:32]} 39. Qxd1 {[%clk 0:00:47]}  Qa1 {[%clk 0:00:38]} 40. Qxa1 {[%clk 0:00:55]}  Bxa1 {[%clk 0:01:06]} 41. Nd5 {[%clk 0:24:27]}  Nxa4 {[%clk 0:28:35]} 42. f3 {[%clk 0:21:44]}  exf3 {[%clk 0:18:56]} 43. gxf3 {[%clk 0:21:52]}  Bd4+ {[%clk 0:19:00]} 44. Kf1 {[%clk 0:20:30]}  Be5 {[%clk 0:18:50]} 45. h3 {[%clk 0:18:24]}  Nb2 {[%clk 0:17:52]} 46. Bb3 {[%clk 0:14:42]}  Nd3 {[%clk 0:16:54]} 47. Bc4 {[%clk 0:13:48]}  Nc5 {[%clk 0:17:15]} 48. Ne7 {[%clk 0:13:34]}  Kg7 {[%clk 0:10:27]} 49. Nc6 {[%clk 0:12:45]}  Kf6 {[%clk 0:10:53]} 50. Nxa7 {[%clk 0:12:42]}  Nb7 {[%clk 0:10:38]} 51. Nc8 {[%clk 0:11:16]}  Bc7 {[%clk 0:08:20]} 52. Kf2 {[%clk 0:10:53]}  Bd8 {[%clk 0:06:08]} 53. Bd5 {[%clk 0:10:26]}  Nc5 {[%clk 0:06:08]} 54. Na7 {[%clk 0:08:51]}  Ke5 {[%clk 0:04:50]} 55. Bf7 {[%clk 0:09:15]}  Bh4+ {[%clk 0:05:16]} 56. Ke3 {[%clk 0:09:26]}  Bg5+ {[%clk 0:05:08]} 57. Kf2 {[%clk 0:07:51]}  Nd3+ {[%clk 0:05:02]} 58. Kg3 {[%clk 0:07:51]}  Bf4+ {[%clk 0:04:52]} 59. Kg2 {[%clk 0:07:52]}  Bd2 {[%clk 0:04:28]} 60. Nc6+ {[%clk 0:05:45]}  Kf6 {[%clk 0:04:04]} 61. Bc4 {[%clk 0:05:22]}  Nf4+ {[%clk 0:04:33]} 62. Kg3 {[%clk 0:04:33]}  Be1+ {[%clk 0:03:07]} 63. Kh2 {[%clk 0:05:02]}  Bc3 {[%clk 0:03:24]} 64. Kg3 {[%clk 0:03:44]}  Be5 {[%clk 0:02:53]} 65. h4 {[%clk 0:03:29]}  Bd6 {[%clk 0:02:43]} 66. Kf2 {[%clk 0:02:54]}  Nh5 {[%clk 0:02:34]} 67. Kg2 {[%clk 0:02:43]}  Bc5 {[%clk 0:02:47]} 68. Ba2 {[%clk 0:01:51]}  Nf4+ {[%clk 0:02:05]} 69. Kg3 {[%clk 0:01:42]}  Ne2+ {[%clk 0:02:03]} 70. Kg2 {[%clk 0:01:53]}  Nc3 {[%clk 0:02:31]} 71. Bc4 {[%clk 0:02:05]}  Nd1 {[%clk 0:02:59]} 72. Bb3 {[%clk 0:01:55]}  Ne3+ {[%clk 0:02:52]} 73. Kf2 {[%clk 0:01:13]}  f4 {[%clk 0:01:51]} 74. Ke2 {[%clk 0:01:40]}  Nf5 {[%clk 0:01:59]} 75. Kd3 {[%clk 0:01:57]}  Nxh4 {[%clk 0:02:09]} 76. Ke4 {[%clk 0:02:19]}  Be3 {[%clk 0:01:45]} 77. Ne5 {[%clk 0:00:45]}  Nf5 {[%clk 0:01:41]} 78. Nd7+ {[%clk 0:01:05]}  Kg5 {[%clk 0:01:43]} 79. Nf8 {[%clk 0:01:13]}  h5 {[%clk 0:01:47]} 80. Ke5 {[%clk 0:00:54]}  Nd4 {[%clk 0:00:39]} 81. Bd5 {[%clk 0:00:39]}  Nxb5 {[%clk 0:00:34]} 82. Bf7 {[%clk 0:00:35]}  Nd4 {[%clk 0:00:35]} 83. Nh7+ {[%clk 0:00:33]}  Kh6 {[%clk 0:00:49]} 84. Nf6 {[%clk 0:00:50]}  Nxf3+ {[%clk 0:01:12]} 0-1


[Site "http://www.chessbomb.com"]

[Event "World Junior Chess Championship U20 2022"]
[White "Zhu, Jiner"]
[Black "Milosevic, Milos"]
[WhiteFideId "8608059"]
[BlackFideId "964875"]
[WhiteElo "2484"]
[BlackElo "2379"]
[Result "1-0"]
[Round "02"]
[TimeControl "5400+30"]
[Date "2022.10.13"]
[WhiteClock "0:26:43"]
[BlackClock "0:01:28"]

1. e4 {[%clk 1:30:51]}  e6 {[%clk 1:30:49]} 2. d4 {[%clk 1:31:10]}  d5 {[%clk 1:31:16]} 3. e5 {[%clk 1:31:33]}  c5 {[%clk 1:31:04]} 4. c3 {[%clk 1:31:54]}  Ne7 {[%clk 1:31:14]} 5. Bd3 {[%clk 1:25:30]}  Nec6 {[%clk 1:31:25]} 6. Nf3 {[%clk 1:25:24]}  b6 {[%clk 1:31:43]} 7. Qe2 {[%clk 1:19:59]}  a5 {[%clk 1:31:18]} 8. a4 {[%clk 1:19:13]}  Ba6 {[%clk 1:30:57]} 9. Bb5 {[%clk 1:16:47]}  Be7 {[%clk 1:30:28]} 10. O-O {[%clk 1:11:52]}  O-O {[%clk 1:29:33]} 11. b3 {[%clk 1:12:10]}  cxd4 {[%clk 1:27:17]} 12. Nxd4 {[%clk 1:11:24]}  Bxb5 {[%clk 1:26:18]} 13. axb5 {[%clk 1:10:52]}  Nxd4 {[%clk 1:26:05]} 14. cxd4 {[%clk 1:11:16]}  Nd7 {[%clk 1:25:26]} 15. Nc3 {[%clk 0:45:39]}  Rc8 {[%clk 1:25:04]} 16. Bd2 {[%clk 0:46:04]}  Bb4 {[%clk 1:17:44]} 17. Rfc1 {[%clk 0:44:52]}  f6 {[%clk 1:16:28]} 18. exf6 {[%clk 0:37:57]}  Qxf6 {[%clk 1:16:41]} 19. Na4 {[%clk 0:38:22]}  Bxd2 {[%clk 1:11:09]} 20. Qxd2 {[%clk 0:38:46]}  e5 {[%clk 1:11:18]} 21. dxe5 {[%clk 0:33:30]}  Qxe5 {[%clk 1:11:09]} 22. Rd1 {[%clk 0:33:39]}  Rf5 {[%clk 1:05:09]} 23. f3 {[%clk 0:33:07]}  Rc7 {[%clk 0:53:36]} 24. Rac1 {[%clk 0:25:07]}  Rxc1 {[%clk 0:48:28]} 25. Qxc1 {[%clk 0:25:27]}  d4 {[%clk 0:42:21]} 26. Qc4+ {[%clk 0:24:09]}  Kf8 {[%clk 0:40:11]} 27. Qxd4 {[%clk 0:22:04]}  Qxd4+ {[%clk 0:40:34]} 28. Rxd4 {[%clk 0:22:30]}  Ke7 {[%clk 0:38:55]} 29. Nc3 {[%clk 0:22:45]}  Rc5 {[%clk 0:38:47]} 30. Rd3 {[%clk 0:22:52]}  Ke6 {[%clk 0:34:36]} 31. f4 {[%clk 0:20:29]}  Nf6 {[%clk 0:31:57]} 32. g3 {[%clk 0:17:55]}  g5 {[%clk 0:24:43]} 33. fxg5 {[%clk 0:15:10]}  Rxg5 {[%clk 0:25:11]} 34. Kg2 {[%clk 0:13:51]}  Rg4 {[%clk 0:24:27]} 35. Ne2 {[%clk 0:12:22]}  Rg5 {[%clk 0:19:17]} 36. Nd4+ {[%clk 0:11:05]}  Kd6 {[%clk 0:15:21]} 37. Rf3 {[%clk 0:08:28]}  Nd5 {[%clk 0:12:51]} 38. Rf8 {[%clk 0:06:59]}  Nc7 {[%clk 0:05:23]} 39. Rd8+ {[%clk 0:04:12]}  Kc5 {[%clk 0:03:03]} 40. Rd7 {[%clk 0:02:31]}  Rd5 {[%clk 0:00:36]} 41. Rxh7 {[%clk 0:28:39]}  Kxd4 {[%clk 0:30:16]} 42. Rxc7 {[%clk 0:29:01]}  Rxb5 {[%clk 0:30:20]} 43. h4 {[%clk 0:29:23]}  Rxb3 {[%clk 0:29:15]} 44. h5 {[%clk 0:29:37]}  Rb2+ {[%clk 0:28:42]} 45. Kh3 {[%clk 0:29:58]}  Rb1 {[%clk 0:28:47]} 46. g4 {[%clk 0:28:36]}  a4 {[%clk 0:26:41]} 47. g5 {[%clk 0:28:03]}  Ke4 {[%clk 0:22:27]} 48. g6 {[%clk 0:27:38]}  Rh1+ {[%clk 0:22:27]} 49. Kg4 {[%clk 0:28:01]}  a3 {[%clk 0:05:32]} 50. Re7+ {[%clk 0:26:07]}  Kd5 {[%clk 0:05:28]} 51. Ra7 {[%clk 0:26:14]}  Ke6 {[%clk 0:04:18]} 52. Kg5 {[%clk 0:26:33]}  Rh3 {[%clk 0:04:29]} 53. g7 {[%clk 0:26:25]}  Rg3+ {[%clk 0:04:34]} 54. Kh6 {[%clk 0:26:30]}  Kf6 {[%clk 0:01:28]} 55. Rxa3 {[%clk 0:26:43]} 1-0


[Site "http://www.chessbomb.com"]

[Event "World Junior Chess Championship U20 2022"]
[White "Di Benedetto, Edoardo"]
[Black "Samunenkov, Ihor"]
[WhiteFideId "875740"]
[BlackFideId "14187086"]
[WhiteElo "2396"]
[BlackElo "2473"]
[Result "0-1"]
[Round "02"]
[TimeControl "5400+30"]
[Date "2022.10.13"]
[WhiteClock "0:00:49"]
[BlackClock "0:28:41"]

1. d4 {[%clk 1:30:58]}  Nf6 {[%clk 1:30:54]} 2. c4 {[%clk 1:31:21]}  e6 {[%clk 1:31:19]} 3. Nf3 {[%clk 1:31:45]}  b6 {[%clk 1:31:28]} 4. g3 {[%clk 1:32:10]}  c6 {[%clk 1:31:37]} 5. Bg2 {[%clk 1:32:29]}  Be7 {[%clk 1:31:59]} 6. O-O {[%clk 1:32:53]}  O-O {[%clk 1:32:22]} 7. Nc3 {[%clk 1:33:05]}  d5 {[%clk 1:32:45]} 8. Nd2 {[%clk 1:33:27]}  a5 {[%clk 1:28:06]} 9. e4 {[%clk 1:31:24]}  dxc4 {[%clk 1:27:35]} 10. Nxc4 {[%clk 1:31:07]}  Ba6 {[%clk 1:27:57]} 11. b3 {[%clk 1:31:05]}  b5 {[%clk 1:26:39]} 12. Ne3 {[%clk 1:25:07]}  b4 {[%clk 1:22:50]} 13. Ne2 {[%clk 1:25:31]}  Bxe2 {[%clk 1:21:43]} 14. Qxe2 {[%clk 1:25:55]}  Qxd4 {[%clk 1:22:06]} 15. Bb2 {[%clk 1:26:05]}  Qa7 {[%clk 1:21:39]} 16. Rac1 {[%clk 0:42:33]}  Qa6 {[%clk 1:17:37]} 17. Rc4 {[%clk 0:40:22]}  Nbd7 {[%clk 1:07:37]} 18. e5 {[%clk 0:31:18]}  Nd5 {[%clk 1:07:54]} 19. Qh5 {[%clk 0:30:10]}  Rfd8 {[%clk 0:57:21]} 20. Ng4 {[%clk 0:13:29]}  g6 {[%clk 0:51:01]} 21. Nh6+ {[%clk 0:08:46]}  Kg7 {[%clk 0:46:24]} 22. Qh3 {[%clk 0:08:57]}  Rh8 {[%clk 0:41:43]} 23. Ng4 {[%clk 0:00:36]}  h5 {[%clk 0:41:43]} 24. Ne3 {[%clk 0:00:57]}  Rad8 {[%clk 0:34:16]} 25. Rfc1 {[%clk 0:00:40]}  Nxe3 {[%clk 0:32:27]} 26. fxe3 {[%clk 0:00:57]}  Bg5 {[%clk 0:32:04]} 27. Rxc6 {[%clk 0:00:33]}  Qe2 {[%clk 0:30:18]} 28. Rf1 {[%clk 0:00:34]}  Qxb2 {[%clk 0:28:43]} 29. Rxf7+ {[%clk 0:00:49]}  Kh6 {[%clk 0:28:41]} 0-1


[Site "http://www.chessbomb.com"]